bitfinex/quotes_BTCUSD_20251012
["timestamp","ask_amount","ask_price","bid_price","bid_amount"]
[1760288332469,0.79433198,114280.0,114270.0,0.00443386]
[1760288332727,1.13433198,114280.0,114270.0,0.011298]
[1760288333131,1.13433198,114280.0,114270.0,0.01284012]
[1760288333821,4.973e-05,114290.0,114270.0,0.18786418]
[1760288333986,4.973e-05,114290.0,114280.0,0.01279876]
[1760288334185,0.34004973,114290.0,114270.0,0.17502406]
[1760288334405,0.34,114280.0,114270.0,0.17502406]
[1760288335722,0.34,114280.0,114270.0,0.17602406]
[1760288337002,0.34,114280.0,114270.0,0.17702406]
[1760288338955,1.10933199,114280.0,114270.0,0.002]
[1760288339135,1.10933199,114280.0,114270.0,0.17702406]
[1760288342233,1.10933199,114280.0,114270.0,0.002]
[1760288342234,1.17208199,114280.0,114270.0,0.002]
[1760288342465,1.21921199,114280.0,114270.0,0.002]
[1760288343191,6.51442073,114280.0,114270.0,0.002]
[1760288343663,6.54457263,114280.0,114270.0,0.002]
[1760288344114,6.28437137,114260.0,114250.0,0.00056377]
[1760288344289,6.33150137,114260.0,114250.0,0.00056377]
[1760288344495,6.48945137,114260.0,114250.0,0.00056377]
[1760288345671,6.48945137,114260.0,114250.0,0.00156377]
[1760288345880,6.48945137,114260.0,114250.0,0.00256377]
[1760288347808,5.72011938,114260.0,114250.0,0.00256377]
[1760288348011,0.04713,114270.0,114250.0,0.17761847]
[1760288348374,5.0,114270.0,114250.0,0.17761847]
[1760288348999,0.07217972,114290.0,114260.0,0.17503938]
[1760288349200,0.84151171,114290.0,114270.0,0.17502285]
[1760288349367,0.41217972,114290.0,114270.0,0.17502285]
[1760288349571,0.36504972,114290.0,114280.0,0.00324083]
[1760288349767,0.02504972,114290.0,114280.0,0.00324083]
[1760288349977,0.36504972,114290.0,114280.0,0.17824958]
[1760288350157,4.973e-05,114290.0,114280.0,0.17500875]
[1760288351842,0.77038172,114290.0,114270.0,0.17502282]
[1760288352200,0.76938172,114290.0,114270.0,0.17502282]
[1760288352587,4.973e-05,114290.0,114270.0,0.17502282]
[1760288353663,4.973e-05,114290.0,114270.0,0.17502327]
[1760288354482,0.76933199,114280.0,114260.0,0.17503012]
[1760288354746,0.81646199,114280.0,114260.0,0.17503706]
[1760288355170,0.81646199,114280.0,114250.0,0.18436038]
[1760288355377,0.76933199,114280.0,114260.0,0.17503861]
[1760288355584,5.0,114280.0,114270.0,0.17502406]
[1760288356030,0.84151171,114290.0,114270.0,0.17502406]
[1760288356377,0.84151171,114290.0,114270.0,0.17502394]
[1760288356586,0.84151171,114290.0,114260.0,0.18479057]
[1760288356587,1.0165052,114290.0,114260.0,0.18479057]
[1760288357401,0.84151171,114290.0,114270.0,0.1750228]
[1760288357603,0.79438171,114290.0,114270.0,0.1750228]
[1760288357719,0.79438171,114290.0,114270.0,0.1760228]
[1760288358176,0.79438171,114290.0,114270.0,0.1750228]
[1760288358377,0.84151171,114290.0,114270.0,0.1750228]
[1760288359019,0.84151171,114290.0,114270.0,0.17502349]
[1760288359226,0.84151171,114290.0,114260.0,0.18379057]
[1760288359432,0.84151171,114290.0,114270.0,0.17502277]
[1760288359681,0.84151171,114290.0,114270.0,0.17502303]
[1760288360258,0.90426171,114290.0,114270.0,0.17502303]
[1760288360478,0.84151171,114290.0,114270.0,0.17502303]
[1760288360678,0.79438171,114290.0,114270.0,0.17502303]
[1760288361810,0.34004973,114290.0,114280.0,0.1771137]
[1760288361984,0.34004973,114290.0,114280.0,0.17500875]
[1760288362385,1.17213172,114290.0,114270.0,0.17502303]
[1760288362577,0.76933199,114280.0,114260.0,0.18379057]
[1760288363007,0.76933199,114270.0,114260.0,0.17503565]
[1760288363212,0.81646199,114280.0,114260.0,0.17503565]
[1760288363421,0.76933199,114270.0,114250.0,0.18436038]
[1760288363634,0.76933199,114280.0,114260.0,0.17503938]
[1760288364254,0.83208199,114280.0,114260.0,0.17503938]
[1760288364471,0.76933199,114280.0,114260.0,0.1760385]
[1760288364700,0.94434097,114280.0,114260.0,0.001]
[1760288364920,0.59592338,114290.0,114260.0,0.1760389]
[1760288365128,5.76933199,114280.0,114260.0,0.1760389]
[1760288365326,0.76933199,114280.0,114260.0,0.1760389]
[1760288365761,0.83208199,114280.0,114260.0,0.1760389]
[1760288366092,0.87921199,114280.0,114260.0,0.1760389]
[1760288366468,5.0,114270.0,114260.0,0.17503938]
[1760288366671,5.0,114270.0,114250.0,0.00056377]
[1760288366672,5.17503938,114260.0,114250.0,0.00056377]
[1760288366903,5.0,114260.0,114250.0,0.00056377]
[1760288367104,0.87921199,114260.0,114250.0,0.00056377]
[1760288367309,1.39425137,114260.0,114250.0,0.00056377]
[1760288367640,1.41925136,114260.0,114250.0,0.00056377]
[1760288367854,0.36499999,114260.0,114250.0,0.00056377]
[1760288368072,0.34,114260.0,114250.0,0.00156377]
[1760288368287,0.34,114260.0,114250.0,0.00356377]
[1760288369433,0.34,114260.0,114250.0,0.17861847]
[1760288369867,0.34,114260.0,114250.0,0.00356377]
[1760288370508,0.34,114260.0,114250.0,0.18975577]
[1760288370710,0.34,114260.0,114250.0,0.17861847]
[1760288379265,0.02499999,114280.0,114260.0,0.17503938]
[1760288381058,0.02499999,114280.0,114270.0,0.17502406]
[1760288381468,0.02499999,114280.0,114260.0,0.17603938]
[1760288382091,0.02499999,114280.0,114270.0,0.17502406]
[1760288382409,0.02499999,114280.0,114270.0,0.001]
[1760288382711,0.02499999,114280.0,114270.0,0.43856406]
[1760288382993,0.02499999,114280.0,114270.0,0.43756406]
[1760288385537,0.02499999,114280.0,114270.0,0.43856406]
[1760288385739,4.973e-05,114290.0,114280.0,0.17500875]
[1760288385941,4.973e-05,114290.0,114280.0,0.43751875]
[1760288386145,6.51316514,114290.0,114280.0,0.26251]
[1760288388039,6.33817171,114290.0,114280.0,0.26251]
[1760288388243,6.51316514,114290.0,114280.0,0.26251]
[1760288388441,6.33817171,114290.0,114280.0,0.26251]
[1760288388691,1.02488308,114290.0,114280.0,0.26251]
[1760288389192,1.11783308,114290.0,114280.0,0.26251]
[1760288390098,1.29282651,114290.0,114280.0,0.26251]
[1760288391225,1.11783308,114290.0,114280.0,0.26251]
[1760288391348,1.29282651,114290.0,114280.0,0.26251]
[1760288391552,1.11783308,114290.0,114280.0,0.26251]
[1760288391879,0.47588972,114290.0,114280.0,0.26251]
[1760288392049,1.02488308,114290.0,114280.0,0.26251]
[1760288392254,1.19987651,114290.0,114280.0,0.26251]
[1760288392953,1.29282651,114290.0,114280.0,0.26251]
[1760288393089,0.65088315,114290.0,114280.0,0.26251]
[1760288393291,1.19987651,114290.0,114280.0,0.26251]
[1760288393508,0.47588972,114290.0,114280.0,0.26251]
[1760288393716,0.47588972,114290.0,114280.0,0.43751875]
[1760288393717,0.34004973,114290.0,114280.0,0.43751875]
[1760288394121,0.88904309,114290.0,114280.0,0.43751875]
[1760288394868,0.8748071,114290.0,114280.0,0.43751875]
[1760288396819,0.32581374,114290.0,114280.0,0.43751875]
[1760288397026,0.8748071,114290.0,114280.0,0.43751875]
[1760288398388,0.32581374,114290.0,114280.0,0.43751875]
[1760288398597,0.90535138,114290.0,114280.0,0.43751875]
[1760288401869,0.32581374,114290.0,114280.0,0.43751875]
[1760288402409,0.90535138,114290.0,114280.0,0.43751875]
[1760288402810,6.88274244,114290.0,114280.0,0.26251]
[1760288404052,6.70774901,114290.0,114280.0,0.26251]
[1760288404254,6.88274244,114290.0,114280.0,0.26251]
[1760288404935,1.88274244,114290.0,114280.0,0.26251]
[1760288405163,6.88274244,114290.0,114280.0,0.26251]
[1760288405366,6.91289434,114290.0,114280.0,0.26251]
[1760288405728,2.49243198,114290.0,114280.0,0.16251]
[1760288405950,5.54003937,114260.0,114250.0,0.07218739]
[1760288406157,6.74482465,114260.0,114250.0,0.07218739]
[1760288406591,6.89697465,114260.0,114250.0,0.00056377]
[1760288406789,6.9233043,114260.0,114250.0,0.00056377]
[1760288407199,1.9534562,114260.0,114250.0,0.00056377]
[1760288407398,7.5579369,114260.0,114250.0,0.00056377]
[1760288407604,7.5579369,114260.0,114250.0,0.00156377]
[1760288407862,7.58717411,114260.0,114250.0,0.00100377]
[1760288408057,7.00763647,114260.0,114250.0,3.77e-06]
[1760288408260,7.58717411,114260.0,114250.0,3.77e-06]
[1760288408490,5.84856119,114260.0,114250.0,0.00100377]
[1760288408683,0.51513134,114200.0,114190.0,0.15267362]
[1760288408832,0.51513134,114200.0,114190.0,0.07162362]
[1760288408833,5.41070999,114200.0,114190.0,0.07162362]
[1760288409034,0.34,114190.0,114180.0,0.21457123]
[1760288409240,0.95176678,114190.0,114180.0,0.27698202]
[1760288409437,1.02247677,114190.0,114180.0,0.10895624]
[1760288409653,0.36499999,114190.0,114180.0,0.10895624]
[1760288409811,0.91467677,114190.0,114180.0,0.10945447]
[1760288410207,0.91010117,114190.0,114180.0,0.11045447]
[1760288410413,1.10796117,114190.0,114180.0,0.04804447]
[1760288410635,1.10796117,114190.0,114180.0,0.04704447]
[1760288410851,1.10796117,114190.0,114180.0,0.00803447]
[1760288411058,1.28310785,114190.0,114180.0,0.00903447]
[1760288411475,1.31325975,114190.0,114180.0,0.00903447]
[1760288411644,1.31325975,114190.0,114180.0,0.01003447]
[1760288412179,6.31325975,114190.0,114180.0,0.00803447]
[1760288412343,6.32045617,114190.0,114180.0,0.00803447]
[1760288412544,1.32045617,114190.0,114180.0,0.00803447]
[1760288412742,6.32045617,114190.0,114180.0,0.00903447]
[1760288413144,6.32045617,114190.0,114180.0,0.00803447]
[1760288413984,1.32045617,114190.0,114180.0,0.00803447]
[1760288414119,6.32045617,114190.0,114180.0,0.00803447]
[1760288414819,1.32045617,114190.0,114180.0,0.00803447]
[1760288415035,6.32045617,114190.0,114180.0,0.00803447]
[1760288415668,0.54016201,114180.0,114170.0,0.0004]
[1760288415913,5.58587201,114180.0,114170.0,0.00053068]
[1760288416122,6.28769879,114180.0,114170.0,0.00053068]
[1760288417053,6.83737557,114180.0,114170.0,0.00053068]
[1760288417259,6.89247053,114180.0,114170.0,0.00053068]
[1760288417454,6.92170774,114180.0,114170.0,0.00053068]
[1760288417690,6.66968281,114170.0,114160.0,1e-08]
[1760288417865,6.66968281,114170.0,114160.0,4.974e-05]
[1760288417866,6.84033586,114170.0,114160.0,4.974e-05]
[1760288418070,6.89248587,114170.0,114160.0,4.974e-05]
[1760288418295,7.02172307,114170.0,114160.0,4.974e-05]
[1760288418636,6.89248587,114170.0,114160.0,4.974e-05]
[1760288418839,6.99248586,114170.0,114160.0,4.974e-05]
[1760288419102,6.99348586,114170.0,114160.0,4.974e-05]
[1760288419263,1.99448586,114170.0,114160.0,4.974e-05]
[1760288419448,6.99448586,114170.0,114160.0,4.974e-05]
[1760288420101,1.99448586,114170.0,114160.0,4.974e-05]
[1760288420313,0.54020804,114150.0,114140.0,0.0004]
[1760288420515,0.57037529,114140.0,114130.0,0.0004]
[1760288420759,6.31799904,114140.0,114130.0,0.0004]
[1760288421087,6.3215138,114140.0,114130.0,0.0004]
[1760288421685,1.3225138,114140.0,114130.0,0.0032228]
[1760288421889,6.3215138,114140.0,114130.0,0.0032228]
[1760288422294,6.3225138,114140.0,114130.0,0.0032228]
[1760288422958,5.77283702,114140.0,114130.0,0.0032228]
[1760288423144,6.3225138,114140.0,114130.0,0.0032228]
[1760288423447,1.3225138,114140.0,114130.0,0.0032228]
[1760288423648,6.3225138,114140.0,114130.0,0.0032228]
[1760288425091,1.3225138,114140.0,114130.0,0.0032228]
[1760288425293,6.3225138,114140.0,114130.0,0.0032228]
[1760288425698,0.11240173,114140.0,114130.0,0.27988156]
[1760288426060,0.00108697,114140.0,114130.0,0.31889156]
[1760288426269,0.55076375,114140.0,114130.0,0.1046428]
[1760288426477,1.28884714,114140.0,114130.0,0.0032228]
[1760288426791,6.28884714,114140.0,114130.0,0.0032228]
[1760288426982,6.11262374,114140.0,114130.0,0.0032228]
[1760288427105,6.02256374,114140.0,114130.0,0.0032228]
[1760288427310,0.91476374,114140.0,114130.0,0.24087156]
[1760288427535,1.28784714,114140.0,114130.0,0.0032228]
[1760288427760,1.02256374,114140.0,114130.0,0.0656328]
[1760288427962,0.91476374,114140.0,114130.0,0.0656328]
[1760288428162,1.02256374,114140.0,114130.0,0.0032228]
[1760288428385,0.36508696,114140.0,114130.0,0.27988156]
[1760288428525,0.91476374,114140.0,114130.0,0.24087156]
[1760288428729,0.91476374,114140.0,114130.0,0.24187156]
[1760288429139,0.36508696,114140.0,114130.0,0.24187156]
[1760288429338,8.697e-05,114140.0,114130.0,0.28088156]
[1760288434361,8.697e-05,114140.0,114130.0,1.29023976]
[1760288434513,8.697e-05,114140.0,114130.0,6.39172721]
[1760288434719,8.697e-05,114140.0,114130.0,6.41806773]
[1760288435156,8.697e-05,114140.0,114130.0,6.41706773]
[1760288435361,8.697e-05,114140.0,114130.0,6.41906773]
[1760288435697,0.07162362,114180.0,114170.0,0.17517736]
[1760288435909,0.0717108,114180.0,114170.0,0.40513688]
[1760288436079,8.718e-05,114180.0,114170.0,0.40513688]
[1760288436813,8.718e-05,114180.0,114170.0,0.66788688]
[1760288437041,8.718e-05,114180.0,114170.0,1.24771556]
[1760288437210,8.718e-05,114180.0,114170.0,1.68771555]
[1760288437911,8.718e-05,114180.0,114170.0,1.68871555]
[1760288438123,8.718e-05,114180.0,114170.0,1.69020301]
[1760288438323,8.718e-05,114180.0,114170.0,1.68871555]
[1760288438575,8.718e-05,114180.0,114170.0,1.69020301]
[1760288439501,8.718e-05,114180.0,114170.0,1.71653467]
[1760288440212,8.718e-05,114180.0,114170.0,1.71553467]
[1760288440409,8.718e-05,114180.0,114170.0,1.16585789]
[1760288440614,8.718e-05,114180.0,114170.0,1.71853467]
[1760288441061,8.718e-05,114180.0,114170.0,1.71553467]
[1760288441261,8.718e-05,114180.0,114170.0,1.71909903]
[1760288442889,8.718e-05,114180.0,114170.0,1.16942225]
[1760288443126,0.07162362,114220.0,114210.0,0.17511601]
[1760288443325,0.07212165,114220.0,114210.0,0.56632553]
[1760288443503,0.00049803,114220.0,114210.0,0.62873553]
[1760288443828,0.00049803,114220.0,114210.0,0.66774553]
[1760288444255,0.00049803,114220.0,114210.0,1.58757421]
[1760288444469,1e-08,114230.0,114220.0,0.20525258]
[1760288444678,1e-08,114230.0,114220.0,0.5965912]
[1760288444853,1e-08,114230.0,114220.0,0.6590012]
[1760288446087,1e-08,114230.0,114220.0,1.64867797]
[1760288446287,1e-08,114230.0,114220.0,0.9990012]
[1760288446460,1e-08,114230.0,114220.0,1.10000119]
[1760288448237,1e-08,114230.0,114220.0,1.11754119]
[1760288448457,1e-08,114230.0,114220.0,1.10000119]
[1760288448935,1e-08,114230.0,114220.0,1.86911901]
[1760288449163,1e-08,114230.0,114220.0,1.10000119]
[1760288449448,1e-08,114230.0,114220.0,1.09900119]
[1760288449696,1e-08,114230.0,114220.0,1.86811901]
[1760288449938,1e-08,114230.0,114220.0,1.16505229]
[1760288450387,1e-08,114230.0,114220.0,1.16405229]
[1760288450607,1e-08,114230.0,114220.0,1.16605229]
[1760288451058,1e-08,114230.0,114220.0,1.93617011]
[1760288451233,1e-08,114230.0,114220.0,1.16705229]
[1760288451579,1e-08,114230.0,114220.0,1.93517011]
[1760288451930,1e-08,114230.0,114220.0,1.93617011]
[1760288452130,1e-08,114230.0,114220.0,1.16705229]
[1760288453014,1e-08,114230.0,114220.0,0.6318493]
[1760288453611,1e-08,114230.0,114220.0,0.6620012]
[1760288454591,0.04726,114260.0,114250.0,0.1750547]
[1760288454592,0.0002,114260.0,114250.0,0.1750547]
[1760288454800,0.07162362,114280.0,114270.0,0.17502406]
[1760288455019,0.07162362,114280.0,114270.0,0.57727406]
[1760288455218,0.43662361,114300.0,114280.0,0.17499795]
[1760288455426,0.09662361,114300.0,114290.0,0.06209]
[1760288455649,0.08825999,114300.0,114290.0,0.32458]
[1760288455856,0.74432811,114300.0,114290.0,0.26249]
[1760288456064,5.7444776,114300.0,114290.0,0.26249]
[1760288456278,5.7746295,114300.0,114290.0,0.26249]
[1760288458123,5.45146949,114300.0,114290.0,0.3013]
[1760288458328,0.02614948,114300.0,114290.0,0.36339]
[1760288458942,0.02614948,114300.0,114290.0,0.53838343]
[1760288459084,0.02614948,114300.0,114290.0,0.36339]
[1760288459294,0.13646948,114300.0,114290.0,0.3013]
[1760288459500,0.13646948,114300.0,114290.0,0.47629343]
[1760288459791,0.3104476,114300.0,114290.0,0.3013]
[1760288459996,5.23516948,114300.0,114290.0,0.3013]
[1760288460194,5.4101476,114300.0,114290.0,0.26249]
[1760288460719,5.13941455,114300.0,114290.0,0.26249]
[1760288460924,5.41409267,114300.0,114290.0,0.26249]
[1760288461986,5.78424457,114300.0,114290.0,0.26249]
[1760288462182,0.78424457,114300.0,114290.0,0.26249]
[1760288462393,5.78424457,114300.0,114290.0,0.26249]
[1760288462939,5.75409267,114300.0,114290.0,0.26249]
[1760288464032,5.75509267,114300.0,114290.0,0.26249]
[1760288464339,5.7934039,114300.0,114290.0,0.26249]
[1760288464597,0.79340412,114300.0,114290.0,0.26249]
[1760288465211,5.79340412,114300.0,114290.0,0.26249]
[1760288465420,5.54003937,114260.0,114250.0,0.11366362]
[1760288465621,5.58588937,114260.0,114250.0,0.11366362]
[1760288465818,5.74756937,114260.0,114250.0,0.04204]
[1760288466094,5.64786937,114260.0,114250.0,0.04204]
[1760288466634,5.74756937,114260.0,114250.0,0.04404]
[1760288467123,5.36499999,114260.0,114250.0,0.04304]
[1760288467322,5.47282999,114260.0,114250.0,0.04304]
[1760288467498,5.64786937,114260.0,114250.0,0.001]
[1760288467907,0.34,114250.0,114230.0,0.26145906]
[1760288468139,0.36508715,114250.0,114240.0,0.06155]
[1760288468401,0.36508715,114250.0,114240.0,0.23662002]
[1760288468611,0.36508715,114250.0,114240.0,0.06155]
[1760288468766,0.36508715,114250.0,114240.0,0.27543002]
[1760288469371,8.716e-05,114250.0,114240.0,0.27543002]
[1760288469599,8.716e-05,114250.0,114240.0,0.10036]
[1760288469785,8.716e-05,114250.0,114240.0,0.06255]
[1760288470003,6.14797185,114250.0,114240.0,0.001]
[1760288470205,5.64797185,114250.0,114240.0,0.001]
[1760288470766,5.74767185,114250.0,114240.0,0.001]
[1760288471126,5.64797185,114250.0,114240.0,0.001]
[1760288472608,5.36508715,114250.0,114240.0,0.06255]
[1760288472813,8.716e-05,114250.0,114240.0,0.28117888]
[1760288473027,8.716e-05,114250.0,114240.0,0.27643002]
[1760288473209,8.716e-05,114250.0,114240.0,0.23762002]
[1760288475283,8.716e-05,114250.0,114240.0,0.27643002]
[1760288475533,8.716e-05,114250.0,114240.0,0.23762002]
[1760288476224,8.716e-05,114250.0,114240.0,0.27643002]
[1760288476473,0.23712186,114250.0,114240.0,0.06255]
[1760288476676,0.40879951,114250.0,114240.0,0.001]
[1760288477074,5.74879951,114250.0,114240.0,0.001]
[1760288477854,5.64909951,114250.0,114240.0,0.001]
[1760288478051,5.74879951,114250.0,114240.0,0.001]
[1760288478274,0.51507002,114240.0,114230.0,0.03881]
[1760288478450,0.56092002,114240.0,114230.0,0.03881]
[1760288478652,5.64790001,114240.0,114230.0,0.03881]
[1760288479408,5.74760001,114240.0,114230.0,0.03981]
[1760288480541,5.64790001,114240.0,114230.0,0.03981]
[1760288480761,0.54007001,114240.0,114230.0,0.10136]
[1760288480974,0.36499999,114240.0,114230.0,0.10136]
[1760288481391,0.36499999,114240.0,114230.0,0.14017]
[1760288481612,0.36499999,114240.0,114230.0,0.31525535]
[1760288481816,0.17514211,114250.0,114230.0,0.31525535]
[1760288481817,0.02508715,114250.0,114230.0,0.31525535]
[1760288482018,0.02508715,114250.0,114240.0,0.17507002]
[1760288482174,0.54014365,114250.0,114230.0,0.31525535]
[1760288482525,0.41093715,114250.0,114230.0,0.31525535]
[1760288482726,0.36508715,114250.0,114240.0,0.21388002]
[1760288482928,0.02508715,114250.0,114240.0,0.27543002]
[1760288483471,0.02508715,114250.0,114240.0,0.23662002]
[1760288483874,0.02508715,114250.0,114240.0,0.06155]
[1760288484081,0.30797185,114250.0,114230.0,0.03981]
[1760288484259,0.64909951,114250.0,114230.0,0.25370511]
[1760288484460,0.64797185,114250.0,114240.0,0.06155]
[1760288484857,0.36508715,114250.0,114240.0,0.06155]
[1760288485068,0.36508715,114250.0,114240.0,0.27643002]
[1760288485272,0.36508715,114250.0,114240.0,0.23762002]
[1760288485493,0.64797185,114250.0,114240.0,0.001]
[1760288485875,5.74767185,114250.0,114240.0,0.001]
[1760288486280,5.77782375,114250.0,114240.0,0.001]
[1760288487649,5.51510068,114220.0,114210.0,0.08085]
[1760288487827,5.56095068,114220.0,114210.0,0.08085]
[1760288488039,5.62293068,114220.0,114210.0,0.08085]
[1760288488448,0.38585,114220.0,114210.0,0.1424]
[1760288488645,0.62293068,114220.0,114210.0,0.08085]
[1760288489153,0.72263068,114220.0,114210.0,0.04204]
[1760288490269,0.44783,114220.0,114210.0,0.04204]
[1760288490456,0.44783,114220.0,114210.0,0.04304]
[1760288490658,0.44783,114220.0,114210.0,0.21815601]
[1760288491407,0.62293068,114220.0,114210.0,0.04304]
[1760288491997,0.38585,114220.0,114210.0,0.10363]
[1760288492196,0.45194,114220.0,114210.0,0.10363]
[1760288492396,0.62704068,114220.0,114210.0,0.04304]
[1760288492614,0.75153067,114220.0,114210.0,0.04304]
[1760288493217,0.65204067,114220.0,114210.0,0.04304]
[1760288493825,0.36499999,114220.0,114210.0,0.27874601]
[1760288494044,0.36499999,114220.0,114210.0,0.10363]
[1760288494250,0.02499999,114230.0,114220.0,0.17510068]
[1760288494470,0.36499999,114230.0,114220.0,0.23569068]
[1760288495531,0.36499999,114230.0,114220.0,0.23669068]
[1760288495755,0.36499999,114230.0,114220.0,0.06159]
[1760288495949,0.65361534,114230.0,114220.0,0.06159]
[1760288496324,0.47852999,114230.0,114220.0,0.23669068]
[1760288496523,0.41243999,114230.0,114220.0,0.23669068]
[1760288496952,0.65361534,114230.0,114220.0,0.001]
[1760288497226,5.75310534,114230.0,114220.0,0.001]
[1760288497760,5.65361534,114230.0,114220.0,0.001]
[1760288497961,0.54008534,114230.0,114220.0,0.06159]
[1760288498243,0.02556387,114240.0,114230.0,0.17508535]
[1760288498447,0.00056388,114240.0,114230.0,0.27448535]
[1760288500364,0.00056388,114240.0,114230.0,0.53710535]
[1760288501306,0.00056388,114240.0,114230.0,0.53810535]
[1760288503761,1e-08,114240.0,114230.0,0.65778677]
[1760288505767,1e-08,114240.0,114230.0,0.65678677]
[1760288505980,1e-08,114240.0,114230.0,0.65878677]
[1760288506489,1e-08,114240.0,114230.0,0.65678677]
[1760288506928,1e-08,114240.0,114230.0,0.65878677]
[1760288507147,0.63044973,114280.0,114260.0,0.1750321]
[1760288507362,0.63044973,114280.0,114270.0,0.09944]
[1760288507572,0.55882611,114280.0,114270.0,0.09944]
[1760288508012,0.20003651,114270.0,114260.0,0.03881]
[1760288508455,0.20003651,114270.0,114260.0,0.09944]
[1760288508888,0.30640651,114270.0,114260.0,0.10044]
[1760288509094,0.30640651,114270.0,114260.0,0.03981]
[1760288509292,5.74579651,114270.0,114260.0,0.001]
[1760288509927,5.74579651,114270.0,114240.0,0.03881]
[1760288509928,0.1750547,114250.0,114240.0,0.03881]
[1760288510142,0.20007001,114240.0,114230.0,0.26262]
[1760288510342,0.30644001,114240.0,114230.0,0.2627691]
[1760288510552,0.74583001,114240.0,114230.0,0.2627691]
[1760288510755,5.74583001,114240.0,114230.0,0.2627691]
[1760288512920,5.74583001,114240.0,114230.0,0.2637691]
[1760288515716,0.77598191,114240.0,114230.0,0.2637691]
[1760288515911,5.77598191,114240.0,114230.0,0.2627691]
[1760288517238,5.77698191,114240.0,114230.0,0.2627691]
[1760288518194,0.77698191,114240.0,114230.0,0.2627691]
[1760288518417,5.77698191,114240.0,114230.0,0.2627691]
[1760288520197,0.77698191,114240.0,114230.0,0.2627691]
[1760288520419,5.77698191,114240.0,114230.0,0.2627691]
[1760288520637,5.540116,114210.0,114200.0,0.07162362]
[1760288520878,5.6194379,114210.0,114200.0,0.07212165]
[1760288520999,0.7787179,114210.0,114200.0,0.00049803]
[1760288521202,5.7787179,114210.0,114200.0,0.00049803]
[1760288521931,5.7787179,114210.0,114200.0,0.00149803]
[1760288522295,5.7787179,114210.0,114200.0,0.00049803]
[1760288522663,5.7787179,114210.0,114200.0,1e-08]
[1760288523708,0.7787179,114210.0,114200.0,1e-08]
[1760288523911,5.7797179,114210.0,114200.0,1e-08]
[1760288524430,0.7797179,114210.0,114200.0,1e-08]
[1760288524663,5.410566,114210.0,114200.0,1e-08]
[1760288524857,5.14015999,114210.0,114200.0,0.21394135]
[1760288525090,0.002,114210.0,114200.0,0.31484135]
[1760288525289,0.02699999,114210.0,114200.0,0.31484135]
[1760288525767,0.02499999,114210.0,114200.0,0.31484135]
[1760288525987,0.03248928,114220.0,114210.0,0.17511601]
[1760288526187,0.03248928,114220.0,114210.0,0.17411601]
[1760288526390,0.03248928,114220.0,114210.0,0.23620601]
[1760288526601,0.02499999,114220.0,114210.0,0.27501601]
[1760288526811,0.02499999,114240.0,114230.0,0.17508535]
[1760288527021,0.02499999,114240.0,114230.0,0.06209]
[1760288527237,0.20007001,114240.0,114230.0,0.06209]
[1760288527665,0.22478899,114250.0,114240.0,0.17507002]
[1760288527666,0.0005638,114250.0,114240.0,0.17507002]
[1760288527867,0.3405638,114250.0,114240.0,0.31478002]
[1760288528687,0.0005638,114250.0,114240.0,0.31478002]
[1760288528866,0.00106156,114250.0,114240.0,0.31478002]
[1760288529131,0.00106156,114250.0,114240.0,0.31578002]
[1760288531406,0.00106156,114250.0,114240.0,0.1019]
[1760288531608,0.31427625,114250.0,114240.0,0.03981]
[1760288531816,0.02606155,114250.0,114240.0,0.27697002]
[1760288532424,0.20111625,114250.0,114240.0,0.1019]
[1760288533274,0.70039625,114250.0,114240.0,0.001]
[1760288533464,5.74956625,114250.0,114240.0,0.001]
[1760288534494,5.65427625,114250.0,114240.0,0.001]
[1760288534694,5.74956625,114250.0,114240.0,0.001]
[1760288534835,5.65427625,114250.0,114240.0,0.001]
[1760288535044,5.74956625,114250.0,114240.0,0.001]
[1760288536757,5.65427625,114250.0,114240.0,0.001]
[1760288537599,0.65427625,114250.0,114240.0,0.001]
[1760288537800,0.54111625,114250.0,114240.0,0.06309]
[1760288538072,0.02606155,114250.0,114240.0,0.27697002]
[1760288538405,0.00106156,114250.0,114240.0,0.27697002]
[1760288538903,0.00106156,114250.0,114240.0,0.23816002]
[1760288539101,0.31427625,114250.0,114240.0,0.001]
[1760288539313,0.13922155,114250.0,114240.0,0.23816002]
[1760288539769,0.07523155,114250.0,114240.0,0.23816002]
[1760288540013,0.25028625,114250.0,114240.0,0.23816002]
[1760288540213,0.02606155,114250.0,114240.0,0.23816002]
[1760288541359,0.00106156,114250.0,114240.0,0.27697002]
[1760288541605,0.00106156,114250.0,114240.0,0.36649954]
[1760288542582,0.00106156,114250.0,114240.0,0.27697002]
[1760288542784,0.00106156,114250.0,114240.0,0.23816002]
[1760288543314,0.17611626,114250.0,114240.0,0.06309]
[1760288543490,0.00106156,114250.0,114240.0,0.23816002]
[1760288543700,0.00106156,114250.0,114240.0,0.27697002]
[1760288544612,0.00106156,114250.0,114240.0,0.36649954]
[1760288544749,0.00106156,114250.0,114240.0,0.39665144]
[1760288545978,0.00106156,114250.0,114240.0,0.65924144]
[1760288548424,0.30452307,114300.0,114290.0,0.17499343]
[1760288548425,0.43662361,114300.0,114290.0,0.17499343]
[1760288548627,0.61175109,114300.0,114290.0,0.1009]
[1760288548828,0.54012747,114300.0,114290.0,0.27589343]
[1760288549176,0.37288076,114300.0,114290.0,0.27589343]
[1760288549316,0.03288076,114300.0,114290.0,0.27589343]
[1760288551589,0.20785888,114300.0,114290.0,0.1009]
[1760288552043,0.26888888,114300.0,114290.0,0.1009]
[1760288552193,0.31448888,114300.0,114290.0,0.1009]
[1760288553038,0.03288076,114300.0,114290.0,0.27589343]
[1760288553792,0.31448888,114300.0,114290.0,0.03881]
[1760288553989,0.21067654,114300.0,114290.0,0.1009]
[1760288554228,0.27170654,114300.0,114290.0,0.03881]
[1760288554427,0.31730654,114300.0,114290.0,0.27589343]
[1760288554643,0.31730654,114300.0,114290.0,0.03881]
[1760288554848,0.54000574,114290.0,114280.0,0.03881]
[1760288555067,0.17502406,114270.0,114260.0,0.11043362]
[1760288555323,0.74505405,114270.0,114260.0,0.37299362]
[1760288555524,0.74505405,114270.0,114260.0,0.30137]
[1760288555933,5.74505405,114270.0,114260.0,0.30137]
[1760288556278,5.64665405,114270.0,114260.0,0.30137]
[1760288556486,5.64665405,114270.0,114210.0,0.03881]
[1760288556487,0.0087535,114240.0,114210.0,0.03881]
[1760288556690,0.20010462,114220.0,114210.0,0.11043362]
[1760288556894,0.24570462,114220.0,114210.0,0.11043362]
[1760288557120,0.24570462,114220.0,114210.0,0.10455]
[1760288557704,0.24570462,114220.0,114210.0,0.10504776]
[1760288558335,0.20010462,114220.0,114210.0,0.10504776]
[1760288558692,5.74413462,114220.0,114210.0,0.00149776]
[1760288558888,5.64611462,114220.0,114210.0,0.00149776]
[1760288559531,5.64611462,114220.0,114210.0,0.00049776]
[1760288560209,5.74413462,114220.0,114210.0,0.00049776]
[1760288561783,5.77428652,114220.0,114200.0,0.00318855]